Cogmind - Beta 13 *** ADVENTURER MODE // 2024.04.04 @ 18:31:49 Player: Papweer Result: Destroyed by Y-45 Defender with Beam Rifle Performance ------------- Evolutions (1) 500 Regions Visited (3) 600 Robots Destroyed (18) 90 Value Destroyed (375) 375 Prototype IDs (5) 100 Alien Tech Used (0) 0 Bonus (0) 0 TOTAL SCORE: 1665 Bonus ------- None Cogmind --------- Core Integrity 0/400 Matter 35/300 Energy 18/100 System Corruption 1% Temperature Cool (9) Movement Core (150) Ox2 Location -9/Materials Parts ------- > --- POWER (1) -------- (None) > --- PROPULSION (3) --- (None) > --- UTILITY (3) ------ ECM Suite Hardened Light Armor Plating > --- WEAPON (2) ------- (None) > --- INVENTORY (5) ---- Aluminum Leg High-capacity Matter Pod (0) Structural Scanner Signal Generator Peak State ------------ > --- POWER ------------ Light Ion Engine > --- PROPULSION ------- Aluminum Leg Aluminum Leg > --- UTILITY ---------- Terrain Scanner ECM Suite > --- WEAPON ----------- Autogun Rocket Launcher > --- INVENTORY -------- Light Ion Engine High-capacity Matter Pod Structural Scanner Signal Generator [Rating: 9] Favorites ----------- Power Light Ion Engine Engine Light Ion Engine Propulsion Aluminum Leg Leg Aluminum Leg Wheel Wheel Utility ECM Suite Device ECM Suite Storage High-capacity Matter Pod Processor Targeting Computer Protection Hardened Light Armor Plating Weapon Grenade Launcher Energy Gun EM Pulse Gun Ballistic Gun Autogun Launcher Grenade Launcher Build | -11 -10 -10 -9 ------- Run | Yrd Mat Min Mat Slots Evolved 2 | . . . 2 Power . | . . . . Propulsion 1 | . . . 1 Utility 1 | . . . 1 Weapon . | . . . . Parts Attached 23 | 8 8 4 3 Power 5 | 2 1 1 1 Engine 5 | 2 1 1 1 Core . | . . . . Reactor . | . . . . Propulsion 4 | 4 . . . Treads . | . . . . Leg 2 | 2 . . . Wheel 2 | 2 . . . Hover . | . . . . Flight . | . . . . Utility 7 | . 5 1 1 Device 4 | . 3 1 . Storage 1 | . 1 . . Processor 1 | . 1 . . Hackware . | . . . . Protection 1 | . . . 1 Artifact . | . . . . Weapon 7 | 2 2 2 1 Energy Gun 1 | 1 . . . Energy Cannon . | . . . . Ballistic Gun 2 | 1 . . 1 Ballistic Cannon . | . . . . Launcher 4 | . 2 2 . Special Weapon . | . . . . Impact Weapon . | . . . . Slashing Weapon . | . . . . Piercing Weapon . | . . . . Special Melee Weapon . | . . . . Unidentified Prototypes . | . . . . Parts Lost 9 | . . 1 8 Power 3 | . . 1 2 Propulsion 2 | . . . 2 Utility 1 | . . . 1 Weapon 3 | . . . 3 Highest Loss Streak 7 | . . 1 7 To Critical Strikes . | . . . . Average Slot Usage (%) 88 | . 94 100 62 Engine 12 | . 12 14 8 Leg 25 | . 28 28 16 Device 21 | . 17 28 19 Processor 2 | . 6 . . Ballistic Gun 1 | . . . 5 Launcher 23 | . 27 28 9 Naked Turns . | . . . . Heaviest Build 14 | 9 14 13 13 Greatest Support 20 | 20 20 20 20 Greatest Overweight (x) 2 | . . . 2 Average Overweight (x) . | . . . . Largest Inventory Capacity 5 | 5 5 5 5 Average Capacity 5 | 5 5 5 5 Most Carried 5 | 5 5 5 5 Average Carried 4 | 2 3 4 4 Final Capacity 5 | 5 5 5 5 Final Carried 5 | 2 5 5 4 Class Distribution -------------------- 95% | Mutant 4% | Infiltrator-Mutant Dominant Class ---------------- Mutant | -10/Materials Mutant | -10/Mines Mutant | -9/Materials Resources | -11 -10 -10 -9 ----------- Run | Yrd Mat Min Mat Matter Collected 418 | 282 102 28 6 Remotely . | . . . . Salvage Created 217 | 47 138 8 24 Parts 21 | 3 16 1 1 Haulers Intercepted . | . . . . Recyclers Shooed 1 | . 1 . . Parts Field Recycled . | . . . . Retrieved Matter . | . . . . Parts Self-Destructed . | . . . . Prevented . | . . . . Kills | -11 -10 -10 -9 ------- Run | Yrd Mat Min Mat Combat Hostiles Destroyed 11 | 1 5 3 2 Guns 1 | 1 . . . AOE 10 | . 5 3 2 Classes Destroyed 6 | 1 4 . 1 Worker 2 | . 2 . . Builder 2 | . 1 . 1 Watcher 3 | . 3 . . Swarmer 6 | . 3 3 . Grunt 3 | 1 2 . . Sentry 2 | . . . 2 Best Kill Streak 6 | 1 6 3 2 Combat Bots Only 4 | 1 4 3 1 Max Kills in Single Turn 4 | 1 4 2 1 Gunslinging . | . . . . Exploded 4 | . 4 2 1 Melee . | . . . . Uniques/NPCs Destroyed . | . . . . Combat | -11 -10 -10 -9 -------- Run | Yrd Mat Min Mat Hostile Shots Fired 119 | 4 4 10 101 Missed 28 | 1 3 3 21 Damage Taken 1202 | 24 8 122 1048 Core 439 | . 8 31 400 Absorbed by Shields . | . . . . Ignored by Resistances 343 | 6 2 38 297 Regen/Repaired (Parts) 14 | . 14 . . Core Remaining (%) 92 | 100 . 84 . Volleys Fired 29 | 4 6 4 15 Largest 2 | 2 2 2 2 Hottest 63 | 60 60 63 63 Shots Fired 45 | 8 12 8 17 Gun 16 | 8 1 . 7 Cannon . | . . . . Launcher 29 | . 11 8 10 Special . | . . . . Kinetic 12 | 4 1 . 7 Thermal . | . . . . Explosive 29 | . 11 8 10 Electromagnetic 4 | 4 . . . Robot Hit Streak 18 | 4 4 2 18 Robot Miss Streak 3 | 1 3 . . Penetration Max . | . . . . Secondary Targets . | . . . . Shots Hit Robots 28 | 5 5 2 16 Core Hits 24 | 2 13 2 7 Critical Kills . | . . . . Critical Parts Destroyed . | . . . . Critical Strikes . | . . . . Melee Attacks . | . . . . Impact . | . . . . Slashing . | . . . . Piercing . | . . . . Sneak Attacks . | . . . . Combat Hostiles . | . . . . Follow-up Attacks . | . . . . Damage Inflicted 1465 | 68 703 287 407 Guns 179 | 68 . . 111 Cannons . | . . . . Explosions 1244 | . 703 287 254 Melee . | . . . . Ramming 42 | . . . 42 Kinetic 151 | 40 . . 111 Thermal 33 | . . 33 . Explosive 1211 | . 703 254 254 Electromagnetic 28 | 28 . . . Impact . | . . . . Slashing . | . . . . Piercing . | . . . . Highest Corruption 1 | . . . 1 Average Corruption 1 | . . . 1 Corruption Purged . | . . . . Corruption Blocked . | . . . . Effects 3 | . . . 3 Matter Fused 2 | . . . 2 Data Loss (minor) 1 | . . . 1 Overload Shots . | . . . . Overflow Damage 86 | . 39 30 17 Projectiles . | . . . . Explosions 86 | . 39 30 17 Melee . | . . . . Knockbacks . | . . . . Impact . | . . . . Kinetic . | . . . . Secondary . | . . . . Self-Inflicted Damage 233 | . . 86 147 Shots 7 | . . 4 3 Rammed 7 | . . . 7 Targets Rammed 15 | . . . 15 Kicked 8 | . . . 8 Crushed . | . . . . Highest Temperature 18 | 18 . 6 13 Average Temperature 5 | 12 . 3 4 Received Heat Transfer 540 | 18 . . 522 Siege Activations . | . . . . Robots Corrupted . | . . . . Combat Hostiles . | . . . . Parts Fried . | . . . . Impact Corruptions . | . . . . Robots Melted . | . . . . Combat Hostiles . | . . . . Parts Melted . | . . . . Heat Transferred 50 | . . 50 . Parts Sabotaged . | . . . . Parts Stolen . | . . . . Parts Stripped . | . . . . Power Chain Reactions . | . . . . Alert | -11 -10 -10 -9 ------- Run | Yrd Mat Min Mat Peak Influence 262 | 20 262 165 237 Initial 54 | . 11 30 54 Average 122 | 4 103 137 194 Maximum Alert Level 1 | . 1 . 1 Low Security (%) 74 | 100 72 100 32 Level 1 25 | . 27 . 67 Level 2 . | . . . . Level 3 . | . . . . Level 4 . | . . . . Level 5 . | . . . . High Security . | . . . . Max Security . | . . . . Squads Dispatched . | . . . . Investigation . | . . . . Extermination . | . . . . Reinforcement . | . . . . Assault . | . . . . Garrison . | . . . . Intercept . | . . . . Searches Triggered . | . . . . Construction Impeded . | . . . . Haulers Reinforced . | . . . . Active Scanning Responses . | . . . . Cargo Convoy Interrupts . | . . . . Stealth | -11 -10 -10 -9 --------- Run | Yrd Mat Min Mat Distress Signals 1 | . . . 1 Communications Jammed . | . . . . Distress Signals . | . . . . Times Spotted 26 | 1 9 4 12 Peak Tracking Total 5 | 1 5 3 5 Tactical Retreats 4 | . . . 4 Traps | -11 -10 -10 -9 ------- Run | Yrd Mat Min Mat Traps Triggered . | . . . . Indirectly . | . . . . Trap Hack Attempts . | . . . . Triggered . | . . . . Disarmed . | . . . . Reprogrammed . | . . . . Reused . | . . . . Traps Extracted . | . . . . Installed . | . . . . Triggered . | . . . . Machines | -11 -10 -10 -9 ---------- Run | Yrd Mat Min Mat Machines Disabled 5 | . 2 1 2 Max in Single Turn 2 | . 2 1 2 Machines Repaired . | . . . . Machines Dismantled . | . . . . Machines Sabotaged . | . . . . Overloaded Fab Kills . | . . . . Hacking | -11 -10 -10 -9 --------- Run | Yrd Mat Min Mat Machines Accessed 7 | . 5 . 2 Terminals 4 | . 3 . 1 Fabricators . | . . . . Repair Stations 1 | . 1 . . Recycling Units 1 | . 1 . . Scanalyzers 1 | . . . 1 Garrison Access . | . . . . Total Hacks 25 | . 18 . 7 Successful 17 | . 13 . 4 Failed 8 | . 5 . 3 Catastrophic . | . . . . Database Lockouts . | . . . . Manual 1 | . 1 . . Terminals 18 | . 14 . 4 Fabricators . | . . . . Repair Stations 2 | . 2 . . Recycling Units 2 | . 2 . . Scanalyzers 3 | . . . 3 Garrison Access . | . . . . Terminal Hacks 12 | . 9 . 3 Record 7 | . 5 . 2 Prototype ID Bank 3 | . 2 . 1 Branch Access Points 1 | . 1 . . Reinforcement Status 1 | . 1 . . Fabricator Hacks . | . . . . Repair Station Hacks 2 | . 2 . . Scan Component 1 | . 1 . . Repair 1 | . 1 . . Recycling Unit Hacks 2 | . 2 . . Recycle Component 1 | . 1 . . Report Inventory 1 | . 1 . . Scanalyzer 1 | . . . 1 Insert Component 1 | . . . 1 Garrison Access Hacks . | . . . . Unauthorized Hacks . | . . . . Terminals . | . . . . Fabricators . | . . . . Repair Stations . | . . . . Recycling Units . | . . . . Scanalyzers . | . . . . Garrison Access . | . . . . Data Cores Recovered . | . . . . Used . | . . . . Hacking Detections 6 | . 4 . 2 Full Trace Events 3 | . 1 . 2 Feedback Events 1 | . . . 1 Corruption 1 | . . . 1 Feedback Blocked . | . . . . Robot Schematics Acquired . | . . . . Robots Built . | . . . . Authchips . | . . . . Time . | . . . . Total Robot Build Rating . | . . . . Part Schematics Acquired . | . . . . Parts Built . | . . . . Authchips . | . . . . Time . | . . . . Total Part Build Rating . | . . . . Parts Repaired 1 | . 1 . . Time 26 | . 26 . . Parts Recycled 1 | . 1 . . Recycled Matter . | . . . . Retrieved Matter . | . . . . Retrieved Components . | . . . . Parts Scanalyzed . | . . . . Part Schematics Acquired . | . . . . Parts Damaged . | . . . . Bothacking | -11 -10 -10 -9 ------------ Run | Yrd Mat Min Mat Used RIF Installer . | . . . . Robots Hacked . | . . . . Non-combat . | . . . . Combat . | . . . . Robot Hacks Applied . | . . . . Relay Couplers Released . | . . . . Fabnet Peak Effective % . | . . . . Robots Rewired . | . . . . Allies Hacked . | . . . . Hacks Repelled . | . . . . Allies | -11 -10 -10 -9 -------- Run | Yrd Mat Min Mat Total Allies . | . . . . Largest Group . | . . . . Highest-Rated Group . | . . . . Highest-Rated Ally . | . . . . Total Orders . | . . . . Ally Attacks . | . . . . Total Damage . | . . . . Kills . | . . . . Allies Corrupted . | . . . . Allies Melted . | . . . . Intel | -11 -10 -10 -9 ------- Run | Yrd Mat Min Mat Robot Analysis Total . | . . . . Derelict Logs Recovered 2 | . . 2 . Drone Launches . | . . . . Drone Recoveries . | . . . . Exploration | -11 -10 -10 -9 ------------- Run | Yrd Mat Min Mat Turns Passed 1345 | 153 497 389 306 Spaces Moved 960 | 89 355 301 215 Core 73 | 22 . . 51 Treads . | . . . . Legs 887 | 67 355 301 164 Wheels . | . . . . Hover . | . . . . Flight . | . . . . Fastest Speed 50 | 50 120 120 50 Average Speed 117 | 102 120 120 116 Slowest Speed 150 | 120 120 120 150 Overloaded Moves . | . . . . Propulsion Burnouts . | . . . . Robots Hopped . | . . . . Cave-ins Triggered . | . . . . Exploration Rate (%) 39 | 9 52 68 30 Regions Visited 3 Branch Regions 1 Pre-discovered Areas 1 | . . 1 . Known Exits Taken 1 | . 1 . . Unknown Exits Taken 2 | 1 . 1 . Scrap Searched 1 | . . 1 . Spaces Dug 17 | . . 17 . Terrain Destroyed 179 | . 56 68 55 Melee . | . . . . Projectile . | . . . . AOE 179 | . 56 68 55 Terrain Rammed . | . . . . Walls Destroyed . | . . . . Machines Disabled . | . . . . Actions | -11 -10 -10 -9 --------- Run | Yrd Mat Min Mat Total 1137 | 144 417 323 253 Wait 70 | 29 33 7 1 Move 957 | 88 354 300 215 Hop . | . . . . Pick Up 27 | 10 10 4 3 Fast Attach . | . . . . Attach 22 | 7 8 4 3 Detach 7 | 2 4 1 . Swap 1 | 1 . . . Drop 9 | 3 2 3 1 Fire 29 | 4 6 4 15 Melee . | . . . . Ram 7 | . . . 7 Kick 8 | . . . 8 Crush . | . . . . Escape Stasis . | . . . . Rewire . | . . . . Trap . | . . . . Miscellaneous . | . . . . Route ------- -11/Scrapyard -10/Materials (discovered 2 exits: *Mat / *Min) -10/Mines -9/Materials (discovered 3 exits: Mat x2 / [*Sto]) History --------- Turn | Location | Event 2 | -11/Scrapyard | Met Revision 17 94 | -11/Scrapyard | Discovered new exit (range 8) 154 | -11/Scrapyard | Entered Materials 263 | -10/Materials | Identified exit to Mines 308 | -10/Materials | Build established: Mutant 383 | -10/Materials | Repaired Ion Engine 482 | -10/Materials | Discovered new exit (range 12) 651 | -10/Materials | Entered Mines 694 | -10/Mines | Received a Rocket Launcher from a helpful Derelict 744 | -10/Mines | Met a Derelict testing a Signal Generator 752 | -10/Mines | Found Signal Generator 840 | -10/Mines | Learned 4 Materials zone layouts 848 | -10/Mines | Discovered new exit (range 6) 850 | -10/Mines | Learned location of Zion (-7) 1040 | -10/Mines | Entered Materials 1040 | -9/Materials | Evolved 2 slots: Propulsion x1, Utility x1 1041 | -9/Materials | Identified exit to Materials 1160 | -9/Materials | Discovered new exit (range 9) 1272 | -9/Materials | Core integrity fell below 50% 1291 | -9/Materials | Core integrity fell below 20% 1320 | -9/Materials | Lost 7 parts (2p2n1u2w) 1346 | -9/Materials | Destroyed by Y-45 Defender with Beam Rifle Last Messages --------------- 01287_ Autogun destroyed. 01289_ Terrain Scanner destroyed. 01292_ Slammed into R-06 Scavenger. 01298_ System corrupted: Component data lost. 01300_ Acquired Hrd. Light Armor Plating. Overweight warning: You are carrying more than your current propulsion can efficiently support, which slows movement; see status page ('s') or the top of the parts list for the specific mass vs. support values. 01313_ Critical hit (Burn: +37). 01327_ Connecting with Scanalyzer... >>Insert(Hcp. Matter Pod) Scanning Hcp. Matter Pod... Ready to analyze. 01328_ Critical hit (Burn: +37). 01336_ Slammed into Y-45 Defender. 01340_ Critical hit (Burn: +37). 01343_ K-01 Serf collects debris. [Achievement: First Step to Greatness] Map ----- +----------------------------------------------------+ | ??????????????????????????# """ #?? ??????# | | ??????????????????????????# """ #?????????####### | | ??????????????????????????# """ #? ?????????????? | | ??????????????????????????# #???????????????? | | ??????????????????????????####+###????? ?????????? | | ????????????????????????? ???# #??????? ??????#?? | | ????????????????????????? ???# #?#??? ????????#??? | | ?????????????????????? ?? ??## ######+##??????#??? | | ????????????????????????? ??# ######?#### | | ????????????????????????? ??# #?# | | ????????????????????????? ??# #### #?# | | ?????????????????????? ?? ??######## #??# #?# | | ????????????????????????# #?# ## #### ### | | ????????????????????????#k#?# ## ## # | | ????????????????????????# #?# ## ## # [ | | ????# #?# ############ #?# # # + | | ????# ### ## # #?# """ # # # | | ???? # # "S # #?# """ + # # | | ???? # ## """ # ### """ # ### ### | | ???? # ## "" # # #* #?# #?# | | ???? # ## """ + YY/ """ ## ##?# #?# | | ???? # ## """ # # """ ## ####"### | | ????#+### ##^ """ # # """ ## ## #### | | ???? # ## # # ## ## #??? | | ???? # ############ ######## ## #??? | | ????" # # ##@ #??????# ## #??? | | ????" # # # #?????# ########??? | | ????" # # # ??? ???????#?? | | ???? # # + ?????????? | | ????##### # """ """ # k ????????? | | ????????# # """ R" # ########+###????????? | | ????????# # """ """ ###+###??????????????????#? | | ????????###### # ???????????? ???????? | | ?????????????########### ????????????????????? | | ??????????????????????#" ????????????????????? | | ??????????????????????#T "????????????????????? | | ??????????????????????#" "????????????????????? | | ??????????????????????## ????????????????????? | | ???????????????????????# ????????????????????? | | ???????????????????????######????????????????????? | | | | | | | | | | | | | | | | | | | | | +----------------------------------------------------+ Best States ------------- Heat Dissipation 28 Energy Generation 10 Energy Capacity 250 Matter Stores 290 Matter Capacity 500 Sight Range 16 Terrain Scan Range 14 Terrain Scan Density 10 ECM Strength 1 Armor Coverage 150 Resistance: KI 20 Resistance: TH 20 Resistance: EX 20 Resistance: EM 20 Resistance: I 20 Resistance: S 20 Resistance: P 20 Evasion (%) 55 Targeting Accuracy 5 Offensive Hacking 10 Item Schematics ----------------- None Robot Schematics ------------------ None Fabricated ------------ Nothing Alien Tech Used ----------------- None Achievements -------------- Crack Shot First Step to Greatness Oops Part-time Mechanic Challenges ------------ None Game ------ Seed AdvancedWeightDrive Manual? 0 Play Time 00:47:42 Cumulative 0.7 hours Start 2024.04.04 @ 17:37:23 End 2024.04.04 @ 18:31:49 Sessions 1 Manual Loads 0 Difficulty Adventurer Special Mode None Game No. 1 Rogue 0 Adventurer 1 Explorer 0 Win Type - Total 0 Types 0/0/0/0/0/0/0/0/0 Lore% 0 Gallery% 1 Achievement% 1 Wizard Run 0 Options --------- Layout 1 ASCII 0 Keyboard 0 Movement Mouse Keybinds 0 Fullscreen 2 Font 24/Terminus Map View 50x35 Zoom Use 10% Tactical HUD 1 Map Filters NONE Filters NONE Steam 0 RUN: 66226d7b-fac3-4d2f-a8a8-45f79141c1a3